Workbook

Sheet Титул
A2: Муниципальное бюджетное дошкольное образовательное учреждение Петрозаводского городского округа «Детский сад общеразвивающего вида с приоритетным осуществлением деятельности по художестенно-эстетическому развитию детей № 22 "Яблонька"
G8: УТВЕРЖДЕНО
G9: приказ № Заведующий Г.В.Чанжалова
C16: ДЕСЯТИДНЕВНОЕ МЕНЮ с 1 до 3 лет

Sheet ПН
A2: Муниципальное бюджетное дошкольное образовательное учреждение Петрозаводского городского округа «Детский сад общеразвивающего вида с приоритетным осуществлением деятельности по художестенно-эстетическому развитию детей № 22 "Яблонька"
F4: УТВЕРЖДЕНО
F5: приказ № Заведующий Г.В.Чанжалова
A9: ПОНЕДЕЛЬНИК
A10: Прием пищи | B10: Наименование блюда | C10: Вес блюда | D10: Пищевые вещества на порцию | G10: Энергетическая ценность | H10: № рецептуры
D11: Белки | E11: Жиры | F11: Углеводы
A12: Вода питьевая детская (на весь день), 300мл
A13: Завтрак | B13: Каша вязкая молочная Дружба | C13: 150 | D13: 4.68 | E13: 4.97 | F13: 16.8 | G13: 131 | H13: 84
B14: Кофейный напиток с молоком | C14: 180 | D14: 3.2 | E14: 2.27 | F14: 9.4 | G14: 68 | H14: 414
B15: Бутерброд с маслом | C15: 34 | D15: 2.31 | E15: 3.14 | F15: 14.81 | G15: 127 | H15: 1
A17: Итого за завтрак | C17: =SUM(C13:C16) -> 364 | D17: =SUM(D13:D16) -> 10.19 | E17: =SUM(E13:E16) -> 10.38 | F17: =SUM(F13:F16) -> 41.01 | G17: =SUM(G13:G16) -> 326
A18: Второй завтрак | B18: Сок | C18: 140 | D18: 0.7 | F18: 12.74 | G18: 53 | H18: 418
B19: Кондитерские изделия | C19: 10 | D19: 0.56 | E19: 0.61 | F19: 7.35 | G19: 41 | H19: 151
A20: Итого за второй завтрак | C20: =SUM(C18:C19) -> 150 | D20: =SUM(D18:D19) -> 1.26 | E20: =SUM(E18:E19) -> 0.61 | F20: =SUM(F18:F19) -> 20.09 | G20: =SUM(G18:G19) -> 94
A21: Обед | B21: Суп овощной с зеленым горошком консервированным | C21: 180 | D21: 0.99 | E21: 1.95 | F21: 7.41 | G21: 51 | H21: 6
B22: Мясной бульон | C22: 135 | D22: 6.13 | E22: 4.94 | F22: 0.77 | G22: 69 | H22: 31
B23: Суфле мясное | C23: 60 | D23: 10.24 | E23: 10.57 | F23: 2.12 | G23: 210 | H23: 188
B24: Соус молочный | C24: 50 | D24: 1.59 | E24: 0.88 | F24: 4.94 | G24: 35 | H24: 365
B25: Макароны отварные | C25: 110 | D25: 3.12 | E25: 3.23 | F25: 19.31 | G25: 119 | H25: 219
B26: Соленый огурец кусочком | C26: 30 | D26: 0.24 | E26: 0.03 | F26: 0.45 | G26: 3 | H26: 70
B27: Компот из сухофруктов | C27: 150 | D27: 0.21 | E27: 0 | F27: 12.89 | G27: 52 | H27: 394
B28: Хлеб ржаной | C28: 35 | D28: 2.31 | E28: 0.42 | F28: 11.69 | G28: 60 | H28: 1
A29: Итого за обед | C29: =SUM(C21:C28) -> 750 | D29: =SUM(D21:D28) -> 24.83 | E29: =SUM(E21:E28) -> 22.02 | F29: =SUM(F21:F28) -> 59.58 | G29: =SUM(G21:G28) -> 599
A30: уплотненый полдник | B30: Крупение из творога | C30: 125 | D30: 4.37 | E30: 7.77 | F30: 102 | G30: 249 | H30: 201
B31: Соус сметано-мясляный | C31: 20 | D31: 0.51 | E31: 1.78 | F31: 2.19 | G31: 27 | H31: 451
B32: Молоко кипяченое | C32: 150 | D32: 4.05 | E32: 3.3 | F32: 6.6 | G32: 72 | H32: 419
B33: Хлеб пшеничный | C33: 30 | D33: 2.28 | E33: 0.24 | F33: 14.76 | G33: 70
B34: Фрукты | C34: 100 | D34: 0.46 | E34: 0.46 | F34: 11.17 | G34: 51 | H34: 386
A35: Итого за УП | C35: =SUM(C30:C34) -> 425 | D35: =SUM(D30:D34) -> 11.67 | E35: =SUM(E30:E34) -> 13.55 | F35: =SUM(F30:F34) -> 136.72 | G35: =SUM(G30:G34) -> 469
A36: Итого за день | C36: =(C17+C20+C29+C35) -> 1689 | D36: =(D17+D20+D29+D37+D35) -> 47.95 | E36: =(E17+E20+E29+E35) -> 46.56 | F36: =(F17+F20+F29+F35) -> 257.4 | G36: =(G17+G20+G29+G35) -> 1488

Sheet ВТ
A2: Муниципальное бюджетное дошкольное образовательное учреждение Петрозаводского городского округа «Детский сад общеразвивающего вида с приоритетным осуществлением деятельности по художестенно-эстетическому развитию детей № 22 "Яблонька"
F5: УТВЕРЖДЕНО
F6: приказ № Заведующий Г.В.Чанжалова
A8: ВТОРНИК
A9: Прием пищи | B9: Наименование блюда | C9: Вес блюда | D9: Пищевые вещества на порцию | G9: Энергетическая ценность | H9: № рецептуры
D10: Белки | E10: Жиры | F10: Углеводы
A11: Вода питьевая детская (на весь день), 300мл
A12: Завтрак | B12: Каша вязкая манная молочная | C12: 150 | D12: 4.43 | E12: 4.92 | F12: 16.02 | G12: 126 | H12: 90
B13: Чай с молоком | C13: 180 | D13: 1.14 | E13: 0.88 | F13: 6.75 | G13: 39 | H13: 261
B14: Бутерброд с маслм и сыром | C14: 40 | D14: 3.7 | E14: 4.91 | F14: 14.8 | G14: 118 | H14: 3
A16: Итого за завтрак | C16: =SUM(C12:C15) -> 370 | D16: =SUM(D12:D15) -> 9.27 | E16: =SUM(E12:E15) -> 10.71 | F16: =SUM(F12:F15) -> 37.57 | G16: =SUM(G12:G15) -> 283
A17: Второй завтрак | B17: Кефир | C17: 150 | D17: 4.35 | E17: 3.75 | F17: 6 | G17: 75 | H17: 420
B18: Кондитерские изделия | C18: 10 | D18: 0.56 | E18: 0.61 | F18: 7.35 | G18: 41 | H18: 151
A19: Итого за второй завтрак | C19: =SUM(C17:C18) -> 160 | D19: =SUM(D17:D18) -> 4.91 | E19: =SUM(E17:E18) -> 4.36 | F19: =SUM(F17:F18) -> 13.35 | G19: =SUM(G17:G18) -> 116
A20: Обед | B20: Борщ из квашенной капусты и картофеля | C20: 180 | D20: 0.97 | E20: 2.78 | F20: 5.36 | G20: 50 | H20: 66
B21: Печень по-строгановски | C21: 60 | D21: 14.94 | E21: 5.64 | F21: 714 | G21: 139 | H21: 162
B22: Рис отварной | C22: 110 | D22: 2.01 | E22: 3.17 | F22: 20.24 | G22: 118 | H22: 332
B23: Морковь отварная кусочком | C23: 30 | D23: 0.4 | E23: 0.03 | F23: 2.08 | G23: 10 | H23: 427
B24: Компот из свежих плодов и ягод | C24: 150 | D24: 0.15 | E24: 0.1 | F24: 9.12 | G24: 38 | H24: 372
B25: Хлеб ржаной | C25: 35 | D25: 2.31 | E25: 0.42 | F25: 11.69 | G25: 60 | H25: 1
A29: Итого за обед | C29: =SUM(C20:C28) -> 565 | D29: =SUM(D20:D28) -> 20.78 | E29: =SUM(E20:E28) -> 12.14 | F29: =SUM(F20:F28) -> 762.49 | G29: =SUM(G20:G28) -> 415
A30: Ужин | B30: Картофель отварной | C30: 130 | D30: 8.61 | E30: 8.46 | F30: 13.5 | G30: 161 | H30: 338
B31: Салат из свеклы с соленым огурцом | C31: 30 | D31: 0.37 | E31: 2.67 | F31: 1.93 | G31: 33 | H31: 63
B32: Чай с сахаром | C32: 180 | D32: 0.06 | E32: 0 | F32: 4.99 | G32: 20 | H32: 263
B33: Булочка домашняя | C33: 60 | D33: 4.05 | E33: 6.22 | F33: 30.05 | G33: 199 | H33: 274
A36: Итого за УП | C36: =SUM(C30:C35) -> 400 | D36: =SUM(D30:D35) -> 13.09 | E36: =SUM(E30:E35) -> 17.35 | F36: =SUM(F30:F35) -> 50.47 | G36: =SUM(G30:G35) -> 413
A37: Итого за день | C37: =SUM(C16+C19+C29+C36) -> 1495 | D37: =SUM(D16+D19+D29+D36) -> 48.05 | E37: =SUM(E16+E19+E29+E36) -> 44.56 | F37: =SUM(F16+F19+F29+F36) -> 863.88 | G37: =SUM(G16+G19+G29+G36) -> 1227

Sheet ВТ Лето
A2: Муниципальное бюджетное дошкольное образовательное учреждение Петрозаводского городского округа «Детский сад общеразвивающего вида с приоритетным осуществлением деятельности по художестенно-эстетическому развитию детей № 22 "Яблонька"
F5: УТВЕРЖДЕНО
F6: приказ № Заведующий Г.В.Чанжалова
A8: ВТОРНИК (ЛЕТО)
A9: Прием пищи | B9: Наименование блюда | C9: Вес блюда | D9: Пищевые вещества на порцию | G9: Энергетическая ценность | H9: № рецептуры
D10: Белки | E10: Жиры | F10: Углеводы
A11: Вода питьевая детская (на весь день), 300мл
A12: Завтрак | B12: Каша вязкая манная молочная | C12: 150 | D12: 4.43 | E12: 4.92 | F12: 16.02 | G12: 126 | H12: 90
B13: Чай с молоком | C13: 180 | D13: 1.14 | E13: 0.88 | F13: 6.75 | G13: 39 | H13: 261
B14: Бутерброд с маслм и сыром | C14: 40 | D14: 3.7 | E14: 4.91 | F14: 14.8 | G14: 118 | H14: 3
A16: Итого за завтрак | C16: =SUM(C12:C15) -> 370 | D16: =SUM(D12:D15) -> 9.27 | E16: =SUM(E12:E15) -> 10.71 | F16: =SUM(F12:F15) -> 37.57 | G16: =SUM(G12:G15) -> 283
A17: Второй завтрак | B17: Кефир | C17: 150 | D17: 4.35 | E17: 3.75 | F17: 6 | G17: 75 | H17: 420
B18: Кондитерские изделия | C18: 10 | D18: 0.56 | E18: 0.61 | F18: 7.35 | G18: 41 | H18: 151
A19: Итого за второй завтрак | C19: =SUM(C17:C18) -> 160 | D19: =SUM(D17:D18) -> 4.91 | E19: =SUM(E17:E18) -> 4.36 | F19: =SUM(F17:F18) -> 13.35 | G19: =SUM(G17:G18) -> 116
A20: Обед | B20: Борщ из свежей капусты и картофеля | C20: 180 | D20: 3.85 | E20: 4.68 | F20: 7.68 | G20: 87 | H20: 66
B21: Печень по-строгановски | C21: 60 | D21: 14.94 | E21: 5.64 | F21: 714 | G21: 139 | H21: 162
B22: Рис отварной | C22: 110 | D22: 2.01 | E22: 3.17 | F22: 20.24 | G22: 118 | H22: 332
B23: Свежий огурец кусочком | C23: 30 | D23: 0.24 | E23: 0.03 | F23: 0.75 | G23: 4 | H23: 70
B24: Компот из свежих плодов и ягод | C24: 150 | D24: 0.15 | E24: 0.1 | F24: 9.12 | G24: 38 | H24: 372
B25: Хлеб ржаной | C25: 35 | D25: 2.31 | E25: 0.42 | F25: 11.69 | G25: 60 | H25: 1
A29: Итого за обед | C29: =SUM(C20:C28) -> 565 | D29: =SUM(D20:D28) -> 23.5 | E29: =SUM(E20:E28) -> 14.04 | F29: =SUM(F20:F28) -> 763.48 | G29: =SUM(G20:G28) -> 446
A30: Ужин | B30: Картофель отварной | C30: 130 | D30: 8.61 | E30: 8.46 | F30: 13.5 | G30: 161 | H30: 338
B31: Салат из свеклы с соленым огурцом | C31: 30 | D31: 0.37 | E31: 2.67 | F31: 1.93 | G31: 33 | H31: 63
B32: Чай с сахаром | C32: 180 | D32: 0.06 | E32: 0 | F32: 4.99 | G32: 20 | H32: 263
B33: Булочка домашняя | C33: 60 | D33: 4.05 | E33: 6.22 | F33: 30.05 | G33: 199 | H33: 274
A36: Итого за УП | C36: =SUM(C30:C35) -> 400 | D36: =SUM(D30:D35) -> 13.09 | E36: =SUM(E30:E35) -> 17.35 | F36: =SUM(F30:F35) -> 50.47 | G36: =SUM(G30:G35) -> 413
A37: Итого за день | C37: =SUM(C16+C19+C29+C36) -> 1495 | D37: =SUM(D16+D19+D29+D36) -> 50.77 | E37: =SUM(E16+E19+E29+E36) -> 46.46 | F37: =SUM(F16+F19+F29+F36) -> 864.87 | G37: =SUM(G16+G19+G29+G36) -> 1258

Sheet СР
A2: Муниципальное бюджетное дошкольное образовательное учреждение Петрозаводского городского округа «Детский сад общеразвивающего вида с приоритетным осуществлением деятельности по художестенно-эстетическому развитию детей № 22 "Яблонька"
F5: УТВЕРЖДЕНО
F6: приказ № Заведующий Г.В.Чанжалова
A9: СРЕДА
A10: Прием пищи | B10: Наименование блюда | C10: Вес блюда | D10: Пищевые вещества на порцию | G10: Энергетическая ценность | H10: № рецептуры
D11: Белки | E11: Жиры | F11: Углеводы
A12: Вода питьевая детская (на весь день), 300мл
A13: Завтрак | B13: Каша вязкая рисовая молочная | C13: 150 | D13: 4.19 | E13: 4.68 | F13: 17.73 | G13: 130 | H13: 98
B14: Какао с молоком | C14: 180 | D14: 3 | E14: 2.26 | F14: 9.42 | G14: 68 | H14: 416
B15: Бутерброд с маслом | C15: 34 | D15: 2.31 | E15: 3.14 | F15: 14.81 | G15: 127 | H15: 1
A17: Итого за завтрак | C17: =SUM(C13:C16) -> 364 | D17: =SUM(D13:D16) -> 9.5 | E17: 10.08 | F17: 41.96 | G17: =SUM(G13:G16) -> 325
A18: Второй завтрак | B18: Сок | C18: 140 | D18: 0.7 | E18: 0 | F18: 12.74 | G18: 53 | H18: 418
B19: Кондитерские изделия | C19: 10 | D19: 0.56 | E19: 0.61 | F19: 7.35 | G19: 41 | H19: 151
A20: Итого за второй завтрак | C20: =SUM(C18:C19) -> 150 | D20: =SUM(D18:D19) -> 1.26 | E20: 0.61 | F20: 20.09 | G20: 94
A21: Обед | B21: Суп щи из свежей капусты | C21: 180 | D21: 3.95 | E21: 4.69 | F21: 6.68 | G21: 83 | H21: 56
B22: Мясной бульон | C22: 135 | D22: 6.13 | E22: 4.94 | F22: 0.77 | G22: 69 | H22: 31
B23: Гуляш из отварного мяса | C23: 60 | D23: 13 | E23: 11.79 | F23: 4.65 | G23: 171 | H23: 293
B24: Греча отварная рассыпчатая | C24: 110 | D24: 3.57 | E24: 3.77 | F24: 15.65 | G24: 111 | H24: 243
B25: Свекла кусочком | C25: 30 | D25: 0.46 | E25: 0.03 | F25: 2.64 | G25: 12 | H25: 427
B26: Компот из изюма и кураги | C26: 150 | D26: 0.36 | E26: 0.04 | F26: 12.3 | G26: 51 | H26: 394
B27: Хлеб ржаной | C27: 35 | D27: 2.31 | E27: 0.42 | F27: 11.69 | G27: 60 | H27: 1
A28: Итого за обед | C28: =SUM(C21:C27) -> 700 | D28: =SUM(D21:D27) -> 29.78 | E28: =SUM(E21:E27) -> 25.68 | F28: =SUM(F21:F27) -> 54.38 | G28: =SUM(G21:G27) -> 557
A29: Уплотненный полдник | B29: Омлет с зеленым горошком | C29: 130 | D29: 1.57 | E29: 5.76 | F29: 2.27 | G29: 277 | H29: 111
B30: Чай с молоком | C30: 180 | D30: 1.14 | E30: 0.88 | F30: 6.75 | G30: 39 | H30: 261
B31: Хлеб пшеничный | C31: 30 | D31: 2.28 | E31: 0.24 | F31: 14.76 | G31: 70
B32: Фрукты | C32: 100 | D32: 0.46 | E32: 0.46 | F32: 11.17 | G32: 51 | H32: 386
A34: Итого за УП | C34: =SUM(C29:C33) -> 440 | D34: =SUM(D29:D33) -> 5.45 | E34: =SUM(E29:E33) -> 7.34 | F34: =SUM(F29:F33) -> 34.95 | G34: =SUM(G29:G33) -> 437
A35: Итого за день | C35: =SUM(C17+C20+C28+C34) -> 1654 | D35: =SUM(D17+D20+D28+D34) -> 45.99 | E35: =SUM(E17+E20+E28+E34) -> 43.71 | F35: =SUM(F17+F20+F28+F34) -> 151.38 | G35: =SUM(G17+G20+G28+G34) -> 1413

Sheet ЧТ
A2: Муниципальное бюджетное дошкольное образовательное учреждение Петрозаводского городского округа «Детский сад общеразвивающего вида с приоритетным осуществлением деятельности по художестенно-эстетическому развитию детей № 22 "Яблонька
F4: УТВЕРЖДЕНО
F5: приказ № Заведующий Г.В.Чанжалова
A8: ЧЕТВЕРГ
A9: Прием пищи | B9: Наименование блюда | C9: Вес блюда | D9: Пищевые вещества на порцию | G9: Энергетическая ценность | H9: № рецептуры
D10: Белки | E10: Жиры | F10: Углеводы
A11: Вода питьевая детская (на весь день), 300мл
A12: Завтрак | B12: Каша вязкая геркулесовая молочная | C12: 150 | D12: 6.46 | E12: 6.84 | F12: 16.09 | G12: 151 | H12: 93
B13: Чай с молоком | C13: 180 | D13: 1.14 | E13: 0.88 | F13: 6.75 | G13: 39 | H13: 261
B14: Бутерброд с маслом | C14: 34 | D14: 2.31 | E14: 3.14 | F14: 14.81 | G14: 127 | H14: 1
A16: Итого за завтрак | C16: =SUM(C12:C15) -> 364 | D16: =SUM(D12:D15) -> 9.91 | E16: =SUM(E12:E15) -> 10.86 | F16: =SUM(F12:F15) -> 37.65 | G16: =SUM(G12:G15) -> 317
A17: Второй завтрак | B17: Кефир | C17: 150 | D17: 4.35 | E17: 3.75 | F17: 6 | G17: 75 | H17: 420
B18: Кондитерские изделия | C18: 10 | D18: 0.56 | E18: 0.61 | F18: 7.35 | G18: 41 | H18: 151
A19: Итого за второй завтрак | C19: =SUM(C17:C18) -> 160 | D19: =SUM(D17:D18) -> 4.91 | E19: =SUM(E17:E18) -> 4.36 | F19: =SUM(F17:F18) -> 13.35 | G19: =SUM(G17:G18) -> 116
A20: Обед | B20: Суп рассольник Домашний | C20: 180 | D20: 2.62 | E20: 3.97 | F20: 5.94 | G20: 69 | H20: 137
B21: Мясной бульон | C21: 135 | D21: 6.13 | E21: 4.94 | F21: 0.77 | G21: 69 | H21: 31
B22: Котлета рыбная | C22: 60 | D22: 10 | E22: 1.6 | F22: 4.97 | G22: 92 | H22: 351
B23: Соус молочный | C23: 50 | D23: 1.59 | E23: 0.88 | F23: 4.94 | G23: 35 | H23: 365
B24: Картофельное пюре | C24: 110 | D24: 2.58 | E24: 3.78 | F24: 16.37 | G24: 109 | H24: 206
B25: Салат из квашенной капусты | C25: 30 | D25: 0.09 | E25: 2.9 | F25: 1.5 | G25: 31 | H25: 16
B26: Компот из свежих плодов и изюма | C26: 150 | D26: 0.2 | E26: 0.08 | F26: 12.36 | G26: 51 | H26: 373
B27: Хлеб ржаной | C27: 35 | D27: 2.31 | E27: 0.42 | F27: 11.69 | G27: 60 | H27: 1
A28: Итого за обед | C28: =SUM(C20:C27) -> 750 | D28: =SUM(D20:D27) -> 25.52 | E28: =SUM(E20:E27) -> 18.57 | F28: =SUM(F20:F27) -> 58.54 | G28: =SUM(G20:G27) -> 516
A29: Употненный полдник | B29: Овощи тушеные с мясом | C29: 180 | D29: 8.61 | E29: 8.46 | F29: 13.5 | G29: 161 | H29: 338
B30: Чай с сахаром | C30: 180 | D30: 0.06 | E30: 0 | F30: 4.99 | G30: 20 | H30: 263
B31: Шанежка наливная с яйцом и сыром | C31: 55 | D31: 7.02 | E31: 6.64 | F31: 28.36 | G31: 257.84 | H31: 571
A35: Итого заУП | C35: =SUM(C29:C34) -> 415 | D35: =SUM(D29:D34) -> 15.69 | E35: =SUM(E29:E34) -> 15.1 | F35: =SUM(F29:F34) -> 46.85 | G35: =SUM(G29:G34) -> 438.84
A36: Итого за день | C36: =SUM(C16+C19+C28+C35) -> 1689 | D36: =SUM(D16+D19+D28+D35) -> 56.03 | E36: =SUM(E16+E19+E28+E35) -> 48.89 | F36: =SUM(F16+F19+F28+F35) -> 156.39 | G36: =SUM(G16+G19+G28+G35) -> 1387.84

Sheet ЧТ Лето
A2: Муниципальное бюджетное дошкольное образовательное учреждение Петрозаводского городского округа «Детский сад общеразвивающего вида с приоритетным осуществлением деятельности по художестенно-эстетическому развитию детей № 22 "Яблонька
F4: УТВЕРЖДЕНО
F5: приказ № Заведующий Г.В.Чанжалова
A8: ЧЕТВЕРГ (ЛЕТО)
A9: Прием пищи | B9: Наименование блюда | C9: Вес блюда | D9: Пищевые вещества на порцию | G9: Энергетическая ценность | H9: № рецептуры
D10: Белки | E10: Жиры | F10: Углеводы
A11: Вода питьевая детская (на весь день), 300мл
A12: Завтрак | B12: Каша вязкая геркулесовая молочная | C12: 150 | D12: 6.46 | E12: 6.84 | F12: 16.09 | G12: 151 | H12: 93
B13: Чай с молоком | C13: 180 | D13: 1.14 | E13: 0.88 | F13: 6.75 | G13: 39 | H13: 261
B14: Бутерброд с маслом | C14: 34 | D14: 2.31 | E14: 3.14 | F14: 14.81 | G14: 127 | H14: 1
A16: Итого за завтрак | C16: =SUM(C12:C15) -> 364 | D16: =SUM(D12:D15) -> 9.91 | E16: =SUM(E12:E15) -> 10.86 | F16: =SUM(F12:F15) -> 37.65 | G16: =SUM(G12:G15) -> 317
A17: Второй завтрак | B17: Кефир | C17: 150 | D17: 4.35 | E17: 3.75 | F17: 6 | G17: 75 | H17: 420
B18: Кондитерские изделия | C18: 10 | D18: 0.56 | E18: 0.61 | F18: 7.35 | G18: 41 | H18: 151
A19: Итого за второй завтрак | C19: =SUM(C17:C18) -> 160 | D19: =SUM(D17:D18) -> 4.91 | E19: =SUM(E17:E18) -> 4.36 | F19: =SUM(F17:F18) -> 13.35 | G19: =SUM(G17:G18) -> 116
A20: Обед | B20: Суп рассольник Домашний | C20: 180 | D20: 2.62 | E20: 3.97 | F20: 5.94 | G20: 69 | H20: 137
B21: Мясной бульон | C21: 135 | D21: 6.13 | E21: 4.94 | F21: 0.77 | G21: 69 | H21: 31
B22: Котлета рыбная | C22: 60 | D22: 10 | E22: 1.6 | F22: 4.97 | G22: 92 | H22: 351
B23: Соус молочный | C23: 50 | D23: 1.59 | E23: 0.88 | F23: 4.94 | G23: 35 | H23: 365
B24: Картофельное пюре | C24: 110 | D24: 2.58 | E24: 3.78 | F24: 16.37 | G24: 109 | H24: 206
B25: Салат из свежих помидоров и огурцов | C25: 30 | D25: 0.29 | E25: 1.8 | F25: 0.92 | G25: 21 | H25: 15
B26: Компот из свежих плодов и изюма | C26: 150 | D26: 0.2 | E26: 0.08 | F26: 12.36 | G26: 51 | H26: 373
B27: Хлеб ржаной | C27: 35 | D27: 2.31 | E27: 0.42 | F27: 11.69 | G27: 60 | H27: 1
A28: Итого за обед | C28: =SUM(C20:C27) -> 750 | D28: =SUM(D20:D27) -> 25.72 | E28: =SUM(E20:E27) -> 17.47 | F28: =SUM(F20:F27) -> 57.96 | G28: =SUM(G20:G27) -> 506
A29: Употненный полдник | B29: Овощи тушеные с мясом | C29: 180 | D29: 9.8 | E29: 8.4 | F29: 10.75 | G29: 145 | H29: 338
B30: Чай с сахаром | C30: 180 | D30: 0.06 | E30: 0 | F30: 4.99 | G30: 20 | H30: 263
B31: Шанежка с сыром | C31: 55 | D31: 7.02 | E31: 6.64 | F31: 28.36 | G31: 257.84 | H31: 571
A35: Итого заУП | C35: =SUM(C29:C34) -> 415 | D35: =SUM(D29:D34) -> 16.88 | E35: =SUM(E29:E34) -> 15.04 | F35: =SUM(F29:F34) -> 44.1 | G35: =SUM(G29:G34) -> 422.84
A36: Итого за день | C36: =SUM(C16+C19+C28+C35) -> 1689 | D36: =SUM(D16+D19+D28+D35) -> 57.42 | E36: =SUM(E16+E19+E28+E35) -> 47.73 | F36: =SUM(F16+F19+F28+F35) -> 153.06 | G36: =SUM(G16+G19+G28+G35) -> 1361.84

Sheet ПТ
A2: Муниципальное бюджетное дошкольное образовательное учреждение Петрозаводского городского округа «Детский сад общеразвивающего вида с приоритетным осуществлением деятельности по художестенно-эстетическому развитию детей № 22 "Яблонька
F5: УТВЕРЖДЕНО
F6: приказ № Заведующий Г.В.Чанжалова
A9: ПЯТНИЦА
A10: Прием пищи | B10: Наименование блюда | C10: Вес блюда | D10: Пищевые вещества на порцию | G10: Энергетическая ценность | H10: № рецептуры
D11: Белки | E11: Жиры | F11: Углеводы
A12: Вода питьевая детская (на весь день), 300мл
A13: Завтрак | B13: Пудинг из творога | C13: 130 | D13: 4.89 | E13: 5.56 | F13: 115.48 | G13: 245 | H13: 126
B14: Соус молочный | C14: 50 | D14: 1.59 | E14: 0.88 | F14: 4.94 | G14: 35 | H14: 365
B15: Кофейный напиток с молоком | C15: 180 | D15: 3.2 | E15: 2.27 | F15: 9.4 | G15: 68 | H15: 414
B16: Бутерброд с маслом | C16: 34 | D16: 2.31 | E16: 3.14 | F16: 14.81 | G16: 127 | H16: 1
A17: Итого за завтрак | C17: =SUM(C13:C16) -> 394 | D17: =SUM(D13:D16) -> 11.99 | E17: =SUM(E13:E16) -> 11.85 | F17: =SUM(F13:F16) -> 144.63 | G17: =SUM(G13:G16) -> 475
A18: Второй завтрак | B18: Сок | C18: 140 | D18: 0.7 | F18: 12.74 | G18: 53 | H18: 418
B19: Кондитерские изделия | C19: 10 | D19: 0.56 | E19: 0.61 | F19: 7.35 | G19: 41 | H19: 151
A20: Итого за второй завтрак | C20: =SUM(C18:C19) -> 150 | D20: =SUM(D19:D19) -> 0.56 | E20: =SUM(E19:E19) -> 0.61 | F20: =SUM(F19:F19) -> 7.35 | G20: =SUM(G19:G19) -> 41
A21: Обед | B21: Суп картофельный с мясными фрикадельками | C21: 180 | D21: 5.58 | E21: 5.63 | F21: 8.12 | G21: 117 | H21: 39
B22: Капуста тушеная с мясом куры | C22: 180 | D22: 17.43 | E22: 16.26 | F22: 8.86 | G22: 250 | H22: 354
B23: Компот из сухофруктов | C23: 150 | D23: 0.21 | E23: 0 | F23: 12.89 | G23: 52 | H23: 394
B24: Хлеб ржаной | C24: 35 | D24: 2.31 | E24: 0.42 | F24: 11.69 | G24: 60 | H24: 1
A26: Итого за обед | C26: =SUM(C21:C25) -> 545 | D26: =SUM(D21:D25) -> 25.53 | E26: =SUM(E21:E25) -> 22.31 | F26: =SUM(F21:F25) -> 41.56 | G26: =SUM(G21:G25) -> 479
A27: Уплотненный полдник | B27: Драчена | C27: 115 | D27: 2.14 | E27: 6.68 | F27: 5.05 | G27: 299 | H27: 242
B28: Морковь отварная кусочком | C28: 30 | D28: 0.4 | E28: 0.03 | F28: 2.08 | G28: 10 | H28: 427
B29: Чай с молоком | C29: 180 | D29: 1.14 | E29: 0.88 | F29: 6.75 | G29: 39 | H29: 261
B30: Хлеб пшеничный | C30: 30 | D30: 2.28 | E30: 0.24 | F30: 14.76 | G30: 70
B31: Фрукты | C31: 100 | D31: 0.46 | E31: 0.46 | F31: 11.17 | G31: 51 | H31: 386
A32: Итого за УП | C32: =SUM(C27:C31) -> 455 | D32: =SUM(D27:D31) -> 6.42 | E32: =SUM(E27:E31) -> 8.29 | F32: =SUM(F27:F31) -> 39.81 | G32: =SUM(G27:G31) -> 469
A33: Итого за день | C33: =SUM(C17+C20+C26+C32) -> 1544 | D33: =SUM(D17+D20+D26+D32) -> 44.5 | E33: =SUM(E17+E20+E26+E32) -> 43.06 | F33: =SUM(F17+F20+F26+F32) -> 233.35 | G33: =SUM(G17+G20+G26+G32) -> 1464

Sheet ПН1
A2: Муниципальное бюджетное дошкольное образовательное учреждение Петрозаводского городского округа «Детский сад общеразвивающего вида с приоритетным осуществлением деятельности по художестенно-эстетическому развитию детей № 22 "Яблонька"
F4: УТВЕРЖДЕНО
F5: приказ № Заведующий Г.В.Чанжалова
A9: ПОНЕДЕЛЬНИК
A10: Прием пищи | B10: Наименование блюда | C10: Вес блюда | D10: Пищевые вещества на порцию | G10: Энергетическая ценность | H10: № рецептуры
D11: Белки | E11: Жиры | F11: Углеводы
A12: Вода питьевая детская (на весь день), 300мл
A13: Завтрак | B13: Каша вязкая ячневая молочная | C13: 150 | D13: 4.58 | E13: 4.97 | F13: 16.64 | G13: 130 | H13: 99
B14: Кофейный напиток с молоком | C14: 180 | D14: 3.2 | E14: 2.27 | F14: 9.4 | G14: 68 | H14: 414
B15: Бутерброд с маслом и сыром | C15: 40 | D15: 3.7 | E15: 4.91 | F15: 14.8 | G15: 118 | H15: 3
A17: Итого за завтрак | C17: =SUM(C13:C16) -> 370 | D17: =SUM(D13:D16) -> 11.48 | E17: =SUM(E13:E16) -> 12.15 | F17: =SUM(F13:F16) -> 40.84 | G17: =SUM(G13:G16) -> 316
A18: Второй завтрак | B18: Сок | C18: 140 | D18: 0.7 | E18: 0 | F18: 12.74 | G18: 53 | H18: 418
B19: Кондитерские изделия | C19: 10 | D19: 0.56 | E19: 0.61 | F19: 7.35 | G19: 41 | H19: 151
A20: Итого за второй завтрак | C20: =SUM(C18:C19) -> 150 | D20: =SUM(D18:D19) -> 1.26 | E20: =SUM(E18:E19) -> 0.61 | F20: =SUM(F18:F19) -> 20.09 | G20: =SUM(G18:G19) -> 94
A21: Обед | B21: Суп Шахтерский | C21: 180 | D21: 4.22 | E21: 4.85 | F21: 10.05 | G21: 99 | H21: 101
B22: Мясной бульон | C22: 135 | D22: 6.13 | E22: 4.94 | F22: 0.77 | G22: 69 | H22: 31
B23: Бефстроганов из отварной говядины | C23: 60 | D23: 13.06 | E23: 12.84 | F23: 4.49 | G23: 180 | H23: 372
B24: Рис отварной | C24: 110 | D24: 2.01 | E24: 3.17 | F24: 20.24 | G24: 118 | H24: 332
B25: Соленый огурец кусочком | C25: 30 | D25: 0.24 | E25: 0.03 | F25: 0.45 | G25: 3 | H25: 70
B26: Компот из сухофруктов | C26: 150 | D26: 0.21 | E26: 0 | F26: 12.89 | G26: 52 | H26: 394
B27: Хлеб ржаной | C27: 35 | D27: 2.31 | E27: 0.42 | F27: 11.69 | G27: 60 | H27: 1
A28: Итого за обед | C28: =SUM(C21:C27) -> 700 | D28: =SUM(D21:D27) -> 28.18 | E28: =SUM(E21:E27) -> 26.25 | F28: =SUM(F21:F27) -> 60.58 | G28: =SUM(G21:G27) -> 581
A29: уплотненый полдник | B29: Омлет паровой натуральный | C29: 115 | D29: 1.57 | E29: 5.76 | F29: 2.27 | G29: 277 | H29: 237
B30: Салат из моркови с зеленым горошком | C30: 30 | D30: 0.28 | E30: 3.1 | F30: 2.52 | G30: 37 | H30: 11
B31: Чай с молоком | C31: 180 | D31: 1.14 | E31: 0.88 | F31: 6.75 | G31: 39 | H31: 261
B32: Хлеб пшеничный | C32: 30 | D32: 2.28 | E32: 0.24 | F32: 14.76 | G32: 70
B33: Фрукты | C33: 100 | D33: 0.46 | E33: 0.46 | F33: 11.17 | G33: 51 | H33: 386
A34: Итого за УП | C34: =SUM(C29:C33) -> 455 | D34: =SUM(D29:D33) -> 5.73 | E34: =SUM(E29:E33) -> 10.44 | F34: =SUM(F29:F33) -> 37.47 | G34: =SUM(G29:G33) -> 474
A35: Итого за день | C35: =(C17+C20+C28+C34) -> 1675 | D35: =SUM(D17+D20+D28+D34) -> 46.65 | E35: =(E17+E20+E28+E34) -> 49.45 | F35: =(F17+F20+F28+F34) -> 158.98 | G35: =(G17+G20+G28+G34) -> 1465

Sheet ВТ1
A2: Муниципальное бюджетное дошкольное образовательное учреждение Петрозаводского городского округа «Детский сад общеразвивающего вида с приоритетным осуществлением деятельности по художестенно-эстетическому развитию детей № 22 "Яблонька"
F5: УТВЕРЖДЕНО
F6: приказ № Заведующий Г.В.Чанжалова
A8: ВТОРНИК
A9: Прием пищи | B9: Наименование блюда | C9: Вес блюда | D9: Пищевые вещества на порцию | G9: Энергетическая ценность | H9: № рецептуры
D10: Белки | E10: Жиры | F10: Углеводы
A11: Вода питьевая детская (на весь день), 300мл
A12: Завтрак | B12: Каша пшенная молочная | C12: 150 | D12: 5.21 | E12: 5.34 | F12: 19.2 | G12: 146 | H12: 96
B13: Чай с молоком | C13: 180 | D13: 1.14 | E13: 0.88 | F13: 6.75 | G13: 39 | H13: 261
B14: Бутерброд с маслом | C14: 34 | D14: 2.31 | E14: 3.14 | F14: 14.81 | G14: 127 | H14: 1
A16: Итого за завтрак | C16: =SUM(C12:C15) -> 364 | D16: =SUM(D12:D15) -> 8.66 | E16: =SUM(E12:E15) -> 9.36 | F16: =SUM(F12:F15) -> 40.76 | G16: =SUM(G12:G15) -> 312
A17: Второй завтрак | B17: Кефир | C17: 150 | D17: 4.35 | E17: 3.75 | F17: 6 | G17: 75 | H17: 420
B18: Кондитерские изделия | C18: 10 | D18: 0.56 | E18: 0.61 | F18: 7.35 | G18: 41 | H18: 151
A19: Итого за второй завтрак | C19: =SUM(C17:C18) -> 160 | D19: =SUM(D17:D18) -> 4.91 | E19: =SUM(E17:E18) -> 4.36 | F19: =SUM(F17:F18) -> 13.35 | G19: =SUM(G17:G18) -> 116
A20: Обед | B20: Суп картофельный с бобовыми | C20: 180 | D20: 6.21 | E20: 4.33 | F20: 14.56 | G20: 120 | H20: 87
B21: Мясной бульон | C21: 135 | D21: 6.13 | E21: 4.94 | F21: 0.77 | G21: 69 | H21: 31
B22: Печень тушеная в соусе | C22: 80 | D22: 14.94 | E22: 6.36 | F22: 7.08 | G22: 145 | H22: 162
B23: Греча отварная рассыпчатая | C23: 110 | D23: 3.57 | E23: 3.77 | F23: 15.65 | G23: 111 | H23: 243
B24: Салат из свеклы с чесноком | C24: 30 | D24: 0.42 | E24: 2.67 | F24: 2.4 | G24: 35 | H24: 22
B25: Кисель из ягод | C25: 150 | D25: 0.1 | E25: 0.04 | F25: 8.64 | G25: 35 | H25: 396
B26: Хлеб ржаной | C26: 35 | D26: 2.31 | E26: 0.42 | F26: 11.69 | G26: 60 | H26: 1
A29: Итого за обед | C29: =SUM(C20:C28) -> 720 | D29: =SUM(D20:D28) -> 33.68 | E29: =SUM(E20:E28) -> 22.53 | F29: =SUM(F20:F28) -> 60.79 | G29: =SUM(G20:G28) -> 575
A30: Итого за полдник
A31: Уплотненный полдник | B31: Голубцы ленивые с мясом | C31: 170 | D31: 11.81 | E31: 11.13 | F31: 10.16 | G31: 183 | H31: 378
B32: Чай с сахаром | C32: 180 | D32: 0.06 | E32: 0 | F32: 4.99 | G32: 20 | H32: 263
B33: Булочка молочная | C33: 45 | D33: 4.7 | E33: 3.67 | F33: 28.37 | G33: 187 | H33: 585
A37: Итого за УП | C37: =SUM(C31:C36) -> 395 | D37: =SUM(D31:D36) -> 16.57 | E37: =SUM(E31:E36) -> 14.8 | F37: =SUM(F31:F36) -> 43.52 | G37: =SUM(G31:G36) -> 390
A38: Итого за день | C38: =SUM(C16+C19+C29+C37) -> 1639 | D38: =SUM(D16+D19+D29+D37) -> 63.82 | E38: 51.05 | F38: 158.42 | G38: 1393

Sheet СР1
A2: Муниципальное бюджетное дошкольное образовательное учреждение Петрозаводского городского округа «Детский сад общеразвивающего вида с приоритетным осуществлением деятельности по художестенно-эстетическому развитию детей № 22 "Яблонька"
F5: УТВЕРЖДЕНО
F6: приказ № Заведующий Г.В.Чанжалова
A9: СРЕДА
A10: Прием пищи | B10: Наименование блюда | C10: Вес блюда | D10: Пищевые вещества на порцию | G10: Энергетическая ценность | H10: № рецептуры
D11: Белки | E11: Жиры | F11: Углеводы
A12: Вода питьевая детская (на весь день), 300мл
A13: Завтрак | B13: Каша вязкая пшеничная | C13: 150 | D13: 4.78 | E13: 4.97 | F13: 16.97 | G13: 132 | H13: 91
B14: Какао с молоком | C14: 180 | D14: 3 | E14: 2.26 | F14: 9.42 | G14: 68 | H14: 416
B15: Бутерброд с маслом и сыром | C15: 40 | D15: 3.7 | E15: 4.91 | F15: 14.8 | G15: 118 | H15: 3
A17: Итого за завтрак | C17: =SUM(C13:C16) -> 370 | D17: =SUM(D13:D16) -> 11.48 | E17: 12.14 | F17: 41.19 | G17: 318
A18: Второй завтрак | B18: Сок | C18: 140 | D18: 0.7 | F18: 12.74 | G18: 53 | H18: 418
B19: Кондитерские изделия | C19: 10 | D19: 0.56 | E19: 0.61 | F19: 7.35 | G19: 41 | H19: 151
A20: Итого за второй завтрак | C20: =SUM(C18:C19) -> 150 | D20: =SUM(D18:D19) -> 1.26 | E20: 0.61 | F20: 20.09 | G20: 94
A21: Обед | B21: Суп свекольник с мясом и сметаной | C21: 180 | D21: 5.3 | E21: 5.27 | F21: 11.27 | G21: 112 | H21: 34
B22: Рыба запеченная с картофелем по-русски. | C22: 180 | D22: 12.76 | E22: 5.46 | F22: 17.09 | G22: 168 | H22: 346
B23: Салат из квашеной капусты | C23: 30 | D23: 0.09 | E23: 2.9 | F23: 1.5 | G23: 31 | H23: 16
B24: Компот из изюма и кураги | C24: 150 | D24: 0.36 | E24: 0.04 | F24: 12.3 | G24: 51 | H24: 394
B25: Хлеб ржаной | C25: 35 | D25: 2.31 | E25: 0.42 | F25: 11.69 | G25: 60 | H25: 1
A29: Итого за обед | C29: =SUM(C21:C28) -> 575 | D29: =SUM(D21:D28) -> 20.82 | E29: 14.09 | F29: 53.85 | G29: 422
A30: Уплотненный полдник | B30: Сырники из творога с повидлом | C30: 115 | D30: 5.16 | E30: 4.5 | F30: 126 | G30: 223 | H30: 245
B31: Молоко кипяченое | C31: 150 | D31: 4.05 | E31: 3.3 | F31: 6.6 | G31: 72 | H31: 419
B32: Хлеб пшеничный | C32: 30 | D32: 2.28 | E32: 0.24 | F32: 14.76 | G32: 70
B33: Фрукты | C33: 100 | D33: 1.5 | E33: 0.5 | F33: 21 | G33: 95 | H33: 386
A35: Итого за УП | C35: =SUM(C30:C34) -> 395 | D35: =SUM(D30:D34) -> 12.99 | E35: =SUM(E30:E34) -> 8.54 | F35: =SUM(F30:F34) -> 168.36 | G35: =SUM(G30:G34) -> 460
A36: Итого за день | C36: =SUM(C17+C20+C29+C35) -> 1490 | D36: =SUM(D17+D20+D29+D35) -> 46.55 | E36: =SUM(E17+E20+E29+E35) -> 35.38 | F36: =SUM(F17+F20+F29+F35) -> 283.49 | G36: =SUM(G17+G20+G29+G35) -> 1294

Sheet СР1 Лето
A2: Муниципальное бюджетное дошкольное образовательное учреждение Петрозаводского городского округа «Детский сад общеразвивающего вида с приоритетным осуществлением деятельности по художестенно-эстетическому развитию детей № 22 "Яблонька"
F5: УТВЕРЖДЕНО
F6: приказ № Заведующий Г.В.Чанжалова
A9: СРЕДА (ЛЕТО)
A10: Прием пищи | B10: Наименование блюда | C10: Вес блюда | D10: Пищевые вещества на порцию | G10: Энергетическая ценность | H10: № рецептуры
D11: Белки | E11: Жиры | F11: Углеводы
A12: Вода питьевая детская (на весь день), 300мл
A13: Завтрак | B13: Каша вязкая пшеничная | C13: 150 | D13: 4.78 | E13: 4.97 | F13: 16.97 | G13: 132 | H13: 91
B14: Какао с молоком | C14: 180 | D14: 3 | E14: 2.26 | F14: 9.42 | G14: 68 | H14: 416
B15: Бутерброд с маслом и сыром | C15: 40 | D15: 3.7 | E15: 4.91 | F15: 14.8 | G15: 118 | H15: 3
A17: Итого за завтрак | C17: =SUM(C13:C16) -> 370 | D17: =SUM(D13:D16) -> 11.48 | E17: 12.14 | F17: 41.19 | G17: 318
A18: Второй завтрак | B18: Сок | C18: 140 | D18: 0.7 | F18: 12.74 | G18: 53 | H18: 418
B19: Кондитерские изделия | C19: 10 | D19: 0.56 | E19: 0.61 | F19: 7.35 | G19: 41 | H19: 151
A20: Итого за второй завтрак | C20: =SUM(C18:C19) -> 150 | D20: =SUM(D18:D19) -> 1.26 | E20: 0.61 | F20: 20.09 | G20: 94
A21: Обед | B21: Суп свекольник с мясом и сметаной | C21: 180 | D21: 5.3 | E21: 5.27 | F21: 11.27 | G21: 112 | H21: 34
B22: Рыба по-польски | C22: 90 | D22: 15.87 | E22: 3.44 | F22: 3.23 | G22: 143 | H22: 256
B23: Пюре картофельное | C23: 110 | D23: 2.58 | E23: 3.78 | F23: 16.37 | G23: 109 | H23: 206
B24: Салат из свежего огурца | C24: 30 | D24: 0.22 | E24: 2.67 | F24: 0.7 | G24: 28 | H24: 15
B25: Компот из изюма и кураги | C25: 150 | D25: 0.36 | E25: 0.04 | F25: 12.3 | G25: 51 | H25: 394
B26: Хлеб ржаной | C26: 35 | D26: 2.31 | E26: 0.42 | F26: 11.69 | G26: 60 | H26: 1
A29: Итого за обед | C29: =SUM(C21:C28) -> 595 | D29: =SUM(D21:D28) -> 26.64 | E29: 15.62 | F29: 55.56 | G29: 503
A30: Уплотненный полдник | B30: Сырники из творога с повидлом | C30: 115 | D30: 5.16 | E30: 4.5 | F30: 126 | G30: 223 | H30: 245
B31: Молоко кипяченое | C31: 150 | D31: 4.05 | E31: 3.3 | F31: 6.6 | G31: 72 | H31: 419
B32: Хлеб пшеничный | C32: 30 | D32: 2.28 | E32: 0.24 | F32: 14.76 | G32: 70
B33: Фрукты | C33: 100 | D33: 1.5 | E33: 0.5 | F33: 21 | G33: 95 | H33: 386
A35: Итого за УП | C35: =SUM(C30:C34) -> 395 | D35: =SUM(D30:D34) -> 12.99 | E35: =SUM(E30:E34) -> 8.54 | F35: =SUM(F30:F34) -> 168.36 | G35: =SUM(G30:G34) -> 460
A36: Итого за день | C36: =SUM(C17+C20+C29+C35) -> 1510 | D36: =SUM(D17+D20+D29+D35) -> 52.37 | E36: =SUM(E17+E20+E29+E35) -> 36.91 | F36: =SUM(F17+F20+F29+F35) -> 285.2 | G36: =SUM(G17+G20+G29+G35) -> 1375

Sheet ЧТ1
A2: Муниципальное бюджетное дошкольное образовательное учреждение Петрозаводского городского округа «Детский сад общеразвивающего вида с приоритетным осуществлением деятельности по художестенно-эстетическому развитию детей № 22 "Яблонька
F4: УТВЕРЖДЕНО
F5: приказ № Заведующий Г.В.Чанжалова
A8: ЧЕТВЕРГ
A9: Прием пищи | B9: Наименование блюда | C9: Вес блюда | D9: Пищевые вещества на порцию | G9: Энергетическая ценность | H9: № рецептуры
D10: Белки | E10: Жиры | F10: Углеводы
A11: Вода питьевая детская (на весь день), 300мл
A12: Завтрак | B12: Омлет с сыром
B13: Морковь отварная кусочком | C13: 30 | D13: 0.4 | E13: 0.03 | F13: 2.08 | G13: 10 | H13: 427
B14: Чай с молоком | C14: 180 | D14: 1.14 | E14: 0.88 | F14: 6.75 | G14: 39 | H14: 261
B15: Бутерброд с маслом | C15: 34 | D15: 2.31 | E15: 3.14 | F15: 14.81 | G15: 127 | H15: 1
A17: Итого за завтрак | C17: =SUM(C12:C16) -> 244 | D17: =SUM(D12:D16) -> 3.85 | E17: =SUM(E12:E16) -> 4.05 | F17: =SUM(F12:F16) -> 23.64 | G17: =SUM(G12:G16) -> 176
A18: Второй завтрак | B18: Кефир | C18: 150 | D18: 4.35 | E18: 3.75 | F18: 6 | G18: 75 | H18: 420
B19: Кондитерские изделия | C19: 10 | D19: 0.56 | E19: 0.61 | F19: 7.35 | G19: 41 | H19: 151
A20: Итого за второй завтрак | C20: =SUM(C18:C19) -> 160 | D20: =SUM(D18:D19) -> 4.91 | E20: =SUM(E18:E19) -> 4.36 | F20: =SUM(F18:F19) -> 13.35 | G20: =SUM(G18:G19) -> 116
A21: Обед | B21: Солянка рыбная со сметаной | C21: 180 | D21: 9.35 | E21: 2.86 | F21: 6.63 | G21: 90 | H21: 142
B22: Жароке с мясом | C22: 160 | D22: 11.77 | E22: 12.85 | F22: 17.41 | G22: 227 | H22: 153
B23: Салат из свеклы | C23: 30 | D23: 0.42 | E23: 2.67 | F23: 2.4 | G23: 35 | H23: 33
B24: Компот из свежих плодов и кураги | C24: 150 | D24: 0.39 | E24: 0.07 | F24: 11.41 | G24: 48 | H24: 373
B25: Хлеб ржаной | C25: 35 | D25: 2.31 | E25: 0.42 | F25: 11.69 | G25: 60 | H25: 1
A27: Итого за обед | C27: =SUM(C21:C26) -> 555 | D27: =SUM(D21:D26) -> 24.24 | E27: =SUM(E21:E26) -> 18.87 | F27: =SUM(F21:F26) -> 49.54 | G27: =SUM(G21:G26) -> 460
A28: Уплотненный полдник | B28: Вермишель отварная на молоке | C28: 150 | D28: 4.71 | E28: 7.71 | F28: 17.3 | G28: 130 | H28: 18
B29: Чай с сахаром | C29: 180 | D29: 0.06 | E29: 0 | F29: 4.99 | G29: 20 | H29: 263
B30: Ватрушка с творогом | C30: 55 | D30: 5.68 | E30: 4.27 | F30: 58 | G30: 231 | H30: 289
A34: Итого за УП | C34: =SUM(C28:C33) -> 385 | D34: =SUM(D28:D33) -> 10.45 | E34: =SUM(E28:E33) -> 11.98 | F34: =SUM(F28:F33) -> 80.29 | G34: =SUM(G28:G33) -> 381
A35: Итого за день | C35: =SUM(C17+C20+C27+C34) -> 1344 | D35: =SUM(D17+D20+D27+D34) -> 43.45 | E35: =SUM(E17+E20+E27+E34) -> 39.26 | F35: =SUM(F17+F20+F27+F34) -> 166.82 | G35: =SUM(G17+G20+G27+G34) -> 1133

Sheet ПТ1
A2: Муниципальное бюджетное дошкольное образовательное учреждение Петрозаводского городского округа «Детский сад общеразвивающего вида с приоритетным осуществлением деятельности по художестенно-эстетическому развитию детей № 22 "Яблонька
F5: УТВЕРЖДЕНО
F6: приказ № Заведующий Г.В.Чанжалова
A9: ПЯТНИЦА
A10: Прием пищи | B10: Наименование блюда | C10: Вес блюда | D10: Пищевые вещества на порцию | G10: Энергетическая ценность | H10: № рецептуры
D11: Белки | E11: Жиры | F11: Углеводы
A12: Вода питьевая детская (на весь день), 300мл
A13: Завтрак | B13: Каша манная молочная | C13: 150 | D13: 4.43 | E13: 4.92 | F13: 16.02 | G13: 126 | H13: 90
B14: Кофейный напиток с молоком | C14: 180 | D14: 3.2 | E14: 2.27 | F14: 9.4 | G14: 68 | H14: 414
B15: Бутерброд с маслом | C15: 34 | D15: 2.31 | E15: 3.14 | F15: 14.81 | G15: 127 | H15: 1
A17: Итого за завтрак | C17: =SUM(C13:C16) -> 364 | D17: =SUM(D13:D16) -> 9.94 | E17: =SUM(E13:E16) -> 10.33 | F17: =SUM(F13:F16) -> 40.23 | G17: =SUM(G13:G16) -> 321
A18: Второй завтрак | B18: Сок | C18: 140 | D18: 0.7 | F18: 12.74 | G18: 53 | H18: 418
B19: Кондитерские изделия | C19: 10 | D19: 0.56 | E19: 0.61 | F19: 7.35 | G19: 41 | H19: 151
A20: Итого за второй завтрак
A21: Обед | C21: =SUM(C18:C20) -> 150 | D21: =SUM(D20:D20) -> 0 | E21: =SUM(E20:E20) -> 0 | F21: =SUM(F20:F20) -> 0 | G21: =SUM(G20:G20) -> 0
B22: Суп картофельный с клецками | C22: 180 | D22: 1.82 | E22: 2.71 | F22: 12.52 | G22: 100 | H22: 37
B23: Куриный бульон | C23: 135 | D23: 14.54 | E23: 13.77 | F23: 0.34 | G23: 182 | H23: 39
B24: Курица в соусе с томатом | C24: 60 | D24: 15.11 | E24: 15.54 | F24: 3.43 | G24: 213 | H24: 410
B25: Макароны отварные | C25: 110 | D25: 3.12 | E25: 3.23 | F25: 19.31 | G25: 119 | H25: 219
B26: Морковь отварная кусочком | C26: 30 | D26: 0.4 | E26: 0.03 | F26: 2.08 | G26: 10 | H26: 427
B27: Компот из сухофруктов | C27: 150 | D27: 0.21 | E27: 0 | F27: 12.89 | G27: 52 | H27: 394
B28: Хлеб ржаной | C28: 35 | D28: 2.31 | E28: 0.42 | F28: 11.69 | G28: 60 | H28: 1
A29: Итого за обед
A30: Уплотненный полдник | C30: =SUM(C22:C29) -> 700 | D30: =SUM(D22:D29) -> 37.51 | E30: =SUM(E22:E29) -> 35.7 | F30: =SUM(F22:F29) -> 62.26 | G30: =SUM(G22:G29) -> 736
B31: Рагу из овощей с мясом | C31: 180 | D31: 8.66 | E31: 8.52 | F31: 15.06 | G31: 168 | H31: 77
B32: 1/2 вареного яйца | C32: 50 | D32: 0.12 | E32: 0.1 | F32: 0.01 | G32: 141 | H32: 209
B33: Чай с сахаром | C33: 180 | D33: 0.06 | E33: 0 | F33: 4.99 | G33: 20 | H33: 263
B34: Хлеб пшеничный | C34: 30 | D34: 2.28 | E34: 0.24 | F34: 14.76 | G34: 70
B35: Фрукты | C35: 100 | D35: 0.9 | E35: 0.2 | F35: 8.1 | G35: 38 | H35: 386
A36: Итого за УП
A37: Итого за день | C37: =SUM(C31:C36) -> 540 | D37: =SUM(D31:D36) -> 12.02 | E37: =SUM(E31:E36) -> 9.06 | F37: =SUM(F31:F36) -> 42.92 | G37: =SUM(G31:G36) -> 437
C38: =SUM(C17+C21+C30+C37) -> 1754 | D38: =SUM(D17+D21+D30+D37) -> 59.47 | E38: =SUM(E17+E21+E30+E37) -> 55.09 | F38: =SUM(F17+F21+F30+F37) -> 145.41 | G38: =SUM(G17+G21+G30+G37) -> 1494

Sheet Среднее значение за период
B1: Среднее значение за период
B2: Вес блюда | C2: Пищевые вещества на порцию | F2: Энергетическая ценность
C3: Белки | D3: Жиры | E3: Углеводы
B4: =AVERAGE(ПН!C36+ВТ!C37+СР!C35+ЧТ!C36+ПТ!C33+ПН1!C35+ВТ1!C38+СР1!C36+ЧТ1!C35+ПТ1!C38)/10 -> 1597.3 | C4: =AVERAGE(ПН!D36+ВТ!D37+СР!D35+ЧТ!D36+ПТ!D33+ПН1!D35+ВТ1!D38+СР1!D36+ЧТ1!D35+ПТ1!D38)/10 -> 50.246 | D4: =AVERAGE(ПН!E36+ВТ!E37+СР!E35+ЧТ!E36+ПТ!E33+ПН1!E35+ВТ1!E38+СР1!E36+ЧТ1!E35+ПТ1!E38)/10 -> 45.701 | E4: =AVERAGE(ПН!F36+ВТ!F37+СР!F38+ЧТ!F37+ПТ!F34+ПН1!F34+ВТ1!F34+СР1!F39+СР1!F36+ЧТ1!F35+ПТ1!F38)/10 -> 175.447 | F4: =AVERAGE(ПН!G36+ВТ!G37+СР!G35+ЧТ!G36+ПТ!G33+ПН1!G35+ВТ1!G38+СР1!G36+ЧТ1!G35+ПТ1!G38)/10 -> 1375.884
